Cogmind - Beta 15 *** ADVENTURER MODE // 2025.06.17 @ 14:37:34 Player: Gilbert Result: Destroyed by as-66710 with Assembled F-torch Performance ------------- Evolutions (0) 0 Regions Visited (4) 800 Robots Destroyed (1) 5 Value Destroyed (34) 34 Prototype IDs (23) 460 Alien Tech Used (0) 0 Bonus (300) 300 TOTAL SCORE: 1599 Bonus ------- Aligned with FarCom 300 Cogmind --------- Core Integrity 0/250 Matter 264/300 Energy 250/250 System Corruption 0% Temperature Cool (32) Movement Core (900) Ox17 Location -9/Mines Parts ------- > --- POWER (1) -------- Ion Engine > --- PROPULSION (2) --- (None) > --- UTILITY (2) ------ High-capacity Storage Unit PSU Rigger > --- WEAPON (2) ------- Particle Gun Mining Claw > --- INVENTORY (20) --- Ion Engine Small Battery (100) Sensor Array ECM Suite Utility Shielding Medium Laser Assault Rifle Light Assault Rifle Mining Laser Peak State ------------ > --- POWER ------------ Ion Engine > --- PROPULSION ------- Aluminum Leg Aluminum Leg > --- UTILITY ---------- High-capacity Storage Unit PSU Rigger > --- WEAPON ----------- Particle Gun > --- INVENTORY -------- Ion Engine Small Battery Sensor Array ECM Suite Utility Shielding Medium Laser Assault Rifle Light Assault Rifle Mining Laser Mining Claw [Rating: 15] Favorites ----------- Power Ion Engine Engine Ion Engine Propulsion Aluminum Leg Leg Aluminum Leg Wheel Wheel Utility Sensor Array Device Sensor Array Storage High-capacity Storage Unit Weapon Particle Gun Energy Gun Particle Gun Ballistic Gun Light Assault Rifle Launcher Grenade Launcher Slashing Weapon Mining Claw Build | -11 -10 -10 -10 -9 ------- Run | Yrd Mat Min Exi Min Slots Evolved . | . . . . . Power . | . . . . . Propulsion . | . . . . . Utility . | . . . . . Weapon . | . . . . . Parts Attached 16 | 6 2 3 2 3 Power 2 | 1 . . . 1 Engine 2 | 1 . . . 1 Core . | . . . . . Reactor . | . . . . . Propulsion 4 | 2 . 2 . . Treads . | . . . . . Leg 2 | . . 2 . . Wheel 2 | 2 . . . . Hover . | . . . . . Flight . | . . . . . Utility 4 | 1 1 . 2 . Device 2 | . 1 . 1 . Storage 2 | 1 . . 1 . Processor . | . . . . . Hackware . | . . . . . Protection . | . . . . . Artifact . | . . . . . Weapon 6 | 2 1 1 . 2 Energy Gun 2 | 1 . 1 . . Energy Cannon . | . . . . . Ballistic Gun 2 | 1 . . . 1 Ballistic Cannon . | . . . . . Launcher 1 | . 1 . . . Special Weapon . | . . . . . Impact Weapon . | . . . . . Slashing Weapon 1 | . . . . 1 Piercing Weapon . | . . . . . Special Melee Weapon . | . . . . . Unidentified Prototypes 1 | . . . 1 . Parts Lost 2 | . . . . 2 Power . | . . . . . Propulsion 2 | . . . . 2 Utility . | . . . . . Weapon . | . . . . . Highest Loss Streak 1 | . . . . 1 To Critical Strikes . | . . . . . Average Backups 8 | 1 4 7 8 9 Power . | . 1 1 1 1 Propulsion . | . . . . . Utility 3 | . 1 2 3 4 Weapon 3 | 1 2 4 4 4 Tool/Special . | . . . . . Unused Backups 5 | . . . . 5 Power . | . . . . . Propulsion . | . . . . . Utility 3 | . . . . 3 Weapon 2 | . . . . 2 Tool/Special . | . . . . . Average Slot Usage (%) 85 | . 88 90 85 83 Engine 14 | . 14 14 14 14 Leg 24 | . . 16 28 23 Wheel 3 | . 28 11 . . Device 13 | . 3 14 14 14 Storage 14 | . 14 14 14 14 Energy Gun 13 | . 14 14 14 12 Launcher 1 | . 5 5 . . Peak Build Rating 15 | 6 7 8 14 15 Average Rating 8 | 3 6 7 8 14 On Entrance 6 | . 6 7 7 14 Naked Turns . | . . . . . Heaviest Build 52 | 13 16 16 50 52 Greatest Support 20 | 20 20 20 20 20 Greatest Overweight (x) 17 | . . 1 2 17 Average Overweight (x) . | . . . 1 2 Largest Inventory Capacity 20 | 8 8 8 20 20 Average Capacity 15 | 7 8 8 16 20 Most Carried 10 | 4 7 8 9 10 Average Carried 8 | 1 5 7 8 9 Final Capacity 20 | 8 8 8 20 20 Final Carried 9 | 2 7 8 9 9 Class Distribution -------------------- 100% | Mutant Dominant Class ---------------- Mutant | -10/Materials Mutant | -10/Mines Mutant | -10/Exiles Mutant | -9/Mines Resources | -11 -10 -10 -10 -9 ----------- Run | Yrd Mat Min Exi Min Matter Collected 367 | 193 . 154 . 20 Remotely . | . . . . . Salvage Created 34 | . 34 . . . Parts 3 | . 3 . . . Haulers Intercepted . | . . . . . Recyclers Shooed 1 | . . 1 . . Parts Field Recycled . | . . . . . Retrieved Matter . | . . . . . Parts Self-Destructed . | . . . . . Prevented . | . . . . . Kills | -11 -10 -10 -10 -9 ------- Run | Yrd Mat Min Exi Min Combat Hostiles Destroyed 1 | . 1 . . . Guns 1 | . 1 . . . Classes Destroyed 1 | . 1 . . . Grunt 1 | . 1 . . . Best Kill Streak 1 | . 1 . . . Combat Bots Only 1 | . 1 . . . Max Kills in Single Turn 1 | . 1 . . . Gunslinging . | . . . . . Exploded . | . . . . . Melee . | . . . . . Uniques/NPCs Destroyed . | . . . . . Combat | -11 -10 -10 -10 -9 -------- Run | Yrd Mat Min Exi Min Hostile Shots Fired 91 | . 14 21 . 56 Missed 15 | . 3 4 . 8 Hits 76 | . 11 17 . 48 Projectile 76 | . 11 17 . 48 Critical Strikes 1 | . . 1 . . Part Disruptions 3 | . . . . 3 Damage Taken 724 | . 149 172 . 403 Core 253 | . 59 44 . 150 Absorbed by Shields . | . . . . . Ignored by Resistances 224 | . 45 54 . 125 Core Remaining (%) 100 | 100 . . . . Volleys Fired 20 | . 10 4 . 6 Largest 2 | . 2 1 . 2 Hottest 85 | . 80 65 . 85 Shots Fired 30 | . 18 4 . 8 Gun 27 | . 15 4 . 8 Cannon . | . . . . . Launcher 3 | . 3 . . . Special . | . . . . . Kinetic 9 | . 7 . . 2 Thermal 18 | . 8 4 . 6 Explosive 3 | . 3 . . . Electromagnetic . | . . . . . Robot Hit Streak 8 | . 2 6 . 8 Robot Miss Streak 2 | . 2 . . 1 Penetration Max . | . . . . . Secondary Targets . | . . . . . Shots Hit Robots 15 | . 4 4 . 7 Core Hits 5 | . 2 1 . 2 Critical Kills . | . . . . . Critical Parts Destroyed . | . . . . . Critical Strikes 2 | . . 1 . 1 Burn 2 | . . 1 . 1 Melee Attacks . | . . . . . Impact . | . . . . . Slashing . | . . . . . Piercing . | . . . . . Sneak Attacks . | . . . . . Combat Hostiles . | . . . . . Follow-up Attacks . | . . . . . Damage Inflicted 210 | . 45 62 . 103 Guns 210 | . 45 62 . 103 Cannons . | . . . . . Explosions . | . . . . . Melee . | . . . . . Ramming . | . . . . . Kinetic 43 | . 19 . . 24 Thermal 167 | . 26 62 . 79 Explosive . | . . . . . Electromagnetic . | . . . . . Impact . | . . . . . Slashing . | . . . . . Piercing . | . . . . . Highest Corruption . | . . . . . Average Corruption . | . . . . . Corruption Purged . | . . . . . Corruption Blocked . | . . . . . Overload Shots . | . . . . . Overflow Damage . | . . . . . Projectiles . | . . . . . Explosions . | . . . . . Melee . | . . . . . Knockbacks . | . . . . . Impact . | . . . . . Kinetic . | . . . . . Secondary . | . . . . . Self-Inflicted Damage 9 | . 9 . . . Shots 1 | . 1 . . . Rammed . | . . . . . Targets Rammed . | . . . . . Kicked . | . . . . . Crushed . | . . . . . Highest Temperature 152 | . 122 96 . 152 Average Temperature 61 | . 68 45 . 62 Received Heat Transfer 1148 | . 81 147 . 920 Siege Activations . | . . . . . Martial Activations . | . . . . . Shielding Activations . | . . . . . Robots Disrupted . | . . . . . Combat Hostiles . | . . . . . Robots Corrupted . | . . . . . Combat Hostiles . | . . . . . Parts Fried . | . . . . . Impact Corruptions . | . . . . . Robots Melted . | . . . . . Combat Hostiles . | . . . . . Parts Melted . | . . . . . Heat Transferred 555 | . 74 222 . 259 Parts Sabotaged . | . . . . . Parts Stolen . | . . . . . Parts Stripped . | . . . . . Power Chain Reactions . | . . . . . Alert | -11 -10 -10 -10 -9 ------- Run | Yrd Mat Min Exi Min Maximum Alert Level . | . . . . . Low Security (%) 100 | 100 100 100 . 100 Level 1 . | . . . . . Level 2 . | . . . . . Level 3 . | . . . . . Level 4 . | . . . . . Level 5 . | . . . . . High Security . | . . . . . Max Security . | . . . . . Peak Influence 30 | . 25 30 . . Initial 4 | . . 4 . . Average 2 | . 10 3 . . Influence Increases 65 | . 35 30 . . Destroy 0b10 Robot/C 20 | . 20 . . . Destroy Structure 15 | . 15 . . . Lose Combat Pursuer 30 | . . 30 . . Influence Decreases 65 | . 20 35 10 . Entered New Map 21 | . . 11 10 . Time Decay 44 | . 20 24 . . Squads Dispatched . | . . . . . Investigation . | . . . . . Extermination . | . . . . . Reinforcement . | . . . . . Assault . | . . . . . Garrison . | . . . . . Intercept . | . . . . . Searches Triggered . | . . . . . Construction Impeded . | . . . . . Haulers Reinforced . | . . . . . Active Scanning Responses . | . . . . . Cargo Convoy Interrupts . | . . . . . Stealth | -11 -10 -10 -10 -9 --------- Run | Yrd Mat Min Exi Min Distress Signals . | . . . . . Communications Jammed . | . . . . . Distress Signals . | . . . . . Times Spotted 12 | . 3 4 . 5 Peak Tracking Total 16 | . 3 2 . 16 Tactical Retreats 2 | . . 1 . 1 Traps | -11 -10 -10 -10 -9 ------- Run | Yrd Mat Min Exi Min Traps Triggered . | . . . . . Indirectly . | . . . . . Trap Hack Attempts . | . . . . . Triggered . | . . . . . Disarmed . | . . . . . Reprogrammed . | . . . . . Reused . | . . . . . Traps Extracted . | . . . . . Installed . | . . . . . Triggered . | . . . . . Machines | -11 -10 -10 -10 -9 ---------- Run | Yrd Mat Min Exi Min Machines Disabled . | . . . . . Max in Single Turn . | . . . . . Machines Repaired . | . . . . . Machines Dismantled . | . . . . . Machines Sabotaged . | . . . . . Overloaded Fab Kills . | . . . . . Hacking | -11 -10 -10 -10 -9 --------- Run | Yrd Mat Min Exi Min Machines Accessed 2 | . . . 2 . Terminals . | . . . . . Fabricators . | . . . . . Repair Stations . | . . . . . Recycling Units . | . . . . . Scanalyzers . | . . . . . Garrison Access . | . . . . . Total Hacks 3 | . . . 3 . Successful 3 | . . . 3 . Failed . | . . . . . Catastrophic . | . . . . . Database Lockouts . | . . . . . Manual 1 | . . . 1 . Terminals . | . . . . . Fabricators . | . . . . . Repair Stations . | . . . . . Recycling Units . | . . . . . Scanalyzers . | . . . . . Garrison Access . | . . . . . Terminal Hacks 3 | . . . 3 . Record 2 | . . . 2 . Proto ID Catalog 1 | . . . 1 . Fabricator Hacks . | . . . . . Repair Station Hacks . | . . . . . Recycling Unit Hacks . | . . . . . Scanalyzer . | . . . . . Garrison Access Hacks . | . . . . . Unauthorized Hacks . | . . . . . Terminals . | . . . . . Fabricators . | . . . . . Repair Stations . | . . . . . Recycling Units . | . . . . . Scanalyzers . | . . . . . Garrison Access . | . . . . . Data Cores Recovered . | . . . . . Used . | . . . . . Hacking Detections . | . . . . . Full Trace Events . | . . . . . Feedback Events . | . . . . . Feedback Blocked . | . . . . . Robot Schematics Acquired . | . . . . . Robots Built . | . . . . . Authchips . | . . . . . Time . | . . . . . Total Robot Build Rating . | . . . . . Part Schematics Acquired . | . . . . . Parts Built . | . . . . . Authchips . | . . . . . Time . | . . . . . Total Part Build Rating . | . . . . . Parts Repaired . | . . . . . Time . | . . . . . Parts Recycled . | . . . . . Recycled Matter . | . . . . . Retrieved Matter . | . . . . . Retrieved Components . | . . . . . Parts Scanalyzed . | . . . . . Part Schematics Acquired . | . . . . . Parts Damaged . | . . . . . Bothacking | -11 -10 -10 -10 -9 ------------ Run | Yrd Mat Min Exi Min Used RIF Installer . | . . . . . Robots Hacked . | . . . . . Non-combat . | . . . . . Combat . | . . . . . Robot Hacks Applied . | . . . . . Relay Couplers Released . | . . . . . Fabnet Peak Effective % . | . . . . . Robots Rewired . | . . . . . Allies Hacked . | . . . . . Hacks Repelled . | . . . . . Allies | -11 -10 -10 -10 -9 -------- Run | Yrd Mat Min Exi Min Total Allies . | . . . . . Largest Group . | . . . . . Highest-Rated Group . | . . . . . Highest-Rated Ally . | . . . . . Total Orders . | . . . . . Ally Attacks . | . . . . . Total Damage . | . . . . . Kills . | . . . . . Allies Corrupted . | . . . . . Allies Melted . | . . . . . Intel | -11 -10 -10 -10 -9 ------- Run | Yrd Mat Min Exi Min Active Infowar (turns) 1556 | . 29 333 1194 . Sensors 1556 | . 29 333 1194 . Robot Analysis Total . | . . . . . Derelict Logs Recovered . | . . . . . Drone Launches . | . . . . . Drone Recoveries . | . . . . . Exploration | -11 -10 -10 -10 -9 ------------- Run | Yrd Mat Min Exi Min Turns Passed 2310 | 41 108 333 1453 375 Spaces Moved 1284 | 38 88 293 747 118 Core 18 | 10 . . . 8 Treads . | . . . . . Legs 1007 | . . 150 747 110 Wheels 259 | 28 88 143 . . Hover . | . . . . . Flight . | . . . . . Fastest Speed 50 | 50 80 80 120 260 Average Speed 171 | 72 80 100 194 300 Slowest Speed 900 | 80 80 190 260 900 Overloaded Moves . | . . . . . Propulsion Burnouts . | . . . . . Robots Hopped . | . . . . . Potential Cave-ins . | . . . . . Cave-ins Triggered . | . . . . . Exploration Rate (%) 34 | 4 17 37 93 21 Regions Visited 4 Branch Regions 3 Pre-discovered Areas 1 | . . 1 . . Known Exits Taken . | . . . . . Unknown Exits Taken 4 | 1 1 1 1 . Scrap Searched 3 | . . 1 . 2 Spaces Dug 11 | . 11 . . . Terrain Destroyed 15 | . 15 . . . Melee . | . . . . . Projectile . | . . . . . AOE 15 | . 15 . . . Terrain Rammed . | . . . . . Walls Destroyed . | . . . . . Machines Disabled . | . . . . . Actions | -11 -10 -10 -10 -9 --------- Run | Yrd Mat Min Exi Min Total 1365 | 51 108 327 750 129 Wait 25 | . 3 22 . . Move 1280 | 37 87 292 746 118 Hop . | . . . . . Pick Up 18 | 8 6 2 1 1 Fast Attach 2 | . . 2 . . Attach 8 | 6 1 . . 1 Detach . | . . . . . Swap 7 | . 1 1 2 3 Drop 5 | . . 4 1 . Fire 20 | . 10 4 . 6 Melee . | . . . . . Ram . | . . . . . Kick . | . . . . . Crush . | . . . . . Escape Stasis . | . . . . . Rewire . | . . . . . Trap . | . . . . . Miscellaneous . | . . . . . Route ------- -11/Scrapyard -10/Materials -10/Mines (discovered 2 exits: [*Mat] / *Exi) -10/Exiles (discovered 2 exits: [*Min x2]) -9/Mines (discovered 1 exit: [*Mat]) History --------- Turn | Location | Event 8 | -11/Scrapyard | Discovered new exit (range 16) 42 | -11/Scrapyard | Entered Materials 124 | -10/Materials | Discovered new exit (range 13) 137 | -10/Materials | Met 8R-AWN 150 | -10/Materials | Entered Mines 151 | -10/Mines | Followed 8R-AWN into the Mines 191 | -10/Mines | Discovered new exit (range 10) 194 | -10/Mines | Learned location of Storage (-8) 201 | -10/Mines | Discovered new exit (range 5) 303 | -10/Mines | Build established: Mutant 352 | -10/Mines | Found a hidden stash of uninstalled traps 483 | -10/Mines | Entered Exiles 500 | -10/Exiles | Discovered new exit (range 15) 540 | -10/Exiles | Welcomed by 8R-AWN 560 | -10/Exiles | Met EX-HEX 626 | -10/Exiles | Met EX-DEC 648 | -10/Exiles | Visited The Gauntlet 956 | -10/Exiles | Discovered new exit (range 14) 1517 | -10/Exiles | Met EX-BIN 1567 | -10/Exiles | Aligned with FarCom system 1569 | -10/Exiles | Given EX-Vault access code 1665 | -10/Exiles | Opened EX-Vault 1676 | -10/Exiles | Found Prototype Device 1677 | -10/Exiles | Identified PSU Rigger 1738 | -10/Exiles | Warned to stay clear of 0b10 Research branches 1936 | -10/Exiles | Left Exiles lab with PSU Rigger 1936 | -10/Exiles | Entered Mines 1999 | -9/Mines | Discovered new exit (range 8) 2193 | -9/Mines | Assembled infested the area 2240 | -9/Mines | Core integrity fell below 50% 2293 | -9/Mines | Core integrity fell below 20% 2311 | -9/Mines | Destroyed by as-66710 with Assembled F-torch Last Messages --------------- 02004_ Found 32 Matter. 02005_ Acquired 20 matter. 02020_ Searching scrap... 02020_ Found Mining Claw. 02020_ Found Hcp. Matter Pod. 02020_ Found Med. Matter Pod. 02020_ Found Mining Laser. 02020_ Found 50 Matter. 02030_ Acquired Mining Claw. 02116_ K-01 Serf collects debris. 02193_ ALERT: Infestation in the mines, dispatching Demolisher response squad. 02193_ U-05 Engineer destroyed. 02215_ R-06 Scavenger destroyed. 02228_ as-66297 suffers critical hit (Burn). 02230_ Aluminum Leg destroyed. 02297_ Destroyed Asb. F-torch. When the line of fire is red, you are attempting to shoot through an object at another target, which incurs significant penalties. Map ----- +----------------------------------------------------+ | ?????????????? #??????????????????? | | ?????????????? ##?????????????????? | | ?????????????? ##????????????????? | | ??????????????# ##???????????????? | | ?????????????## ####????????????? | | ?????????????# ?????????????? | | ?????????????? ??????????????? | | ??????????????# #???????????????? | | ??????????????# #???????????????? | | ?????????????## #????????????????? | | ????????????## #?????????????????? | | ????????????# % ##?????????????????? | | ??????####### ##??????????????????? | | ?????## ##???????????????????? | | ????## #????????????????????? | | ????# #### #???????????????????? | | ????# #??## #???????????????????? | | ????# #???####???????????????????? | | ???## ###????????????????????????? | | ???# ##???????????????????????? | | ???# #???????????????????????? | | ???# #???????????????????????? | | ???# ##???????????????????????? | | ???## a##???????????????????????? | | ????## ####????????????????????? | | ?????## @ #####?????####???????? | | ??????### ##???##!|##??????? | | ????????## ## #???# % ##?????? | | ?????????###### #???#